bitfinex-derivatives/quotes_ETHF0:USTF0_20241104
["timestamp","ask_amount","ask_price","bid_price","bid_amount"]
[1730725616401,0.458,2482.8,2482.7,0.40312]
[1730725616601,0.86111,2482.8,2482.7,0.40312]
[1730725616796,0.40312,2482.7,2482.5,0.40314]
[1730725617003,0.40313,2482.7,2482.6,0.40314]
[1730725617594,0.86112,2482.8,2482.7,0.40312]
[1730725617799,3.6549,2483.1,2482.4,6.81758282]
[1730725618100,40.8,2483.4,2482.7,3.2078]
[1730725618101,0.4277,2483.3,2482.7,3.2078]
[1730725618399,0.40308,2483.0,2482.9,0.40308]
[1730725619406,0.40311,2482.8,2482.7,0.40311]
[1730725619603,0.4487,2482.9,2482.8,0.40311]
[1730725619906,0.4487,2482.9,2482.8,0.98295986]
[1730725620508,0.4487,2482.9,2482.8,1.17698082]
[1730725620896,0.4487,2482.9,2482.8,0.98295986]
[1730725621102,0.4487,2482.9,2482.8,1.17698071]
[1730725621302,0.4487,2482.9,2482.8,0.98295986]
[1730725621605,0.85179,2482.9,2482.8,0.57984986]
[1730725621805,0.85179,2482.9,2482.8,0.98295986]
[1730725622002,0.4487,2482.9,2482.8,0.98295986]
[1730725622398,47.16018282,2483.4,2482.8,1.70222762]
[1730725622699,0.4375,2483.3,2483.1,0.40305]
[1730725622901,0.4375,2483.3,2482.9,3.15065505]
[1730725622902,0.4375,2483.3,2483.0,0.4309]
[1730725623099,0.40308,2483.0,2482.9,0.4408]
[1730725623303,0.40308,2483.0,2482.9,0.58034199]
[1730725623498,4.0272,2483.0,2482.7,3.6387]
[1730725623704,0.84061,2482.9,2482.8,0.58038684]
[1730725624005,0.84061,2482.9,2482.8,0.98349684]
[1730725624507,0.84061,2482.9,2482.8,0.58038684]
[1730725624702,0.84061,2482.9,2482.8,0.98349684]
[1730725625008,0.84061,2482.9,2482.8,0.58038684]
[1730725625209,0.4375,2482.9,2482.7,4.04181]
[1730725625505,0.8406,2482.9,2482.8,0.98359492]
[1730725626010,0.84059,2482.9,2482.8,0.98359492]
[1730725626203,0.4375,2482.9,2482.8,0.98359492]
[1730725626399,0.84059,2482.9,2482.8,0.40311]
[1730725626706,0.40311,2482.8,2482.7,4.04181]
[1730725627110,0.8406,2482.9,2482.8,0.40311]
[1730725628310,0.4375,2482.9,2482.7,3.6387]
[1730725628504,0.40311,2482.8,2482.7,3.61091]
[1730725629311,0.40311,2482.8,2482.7,3.2078]
[1730725629605,0.40311,2482.8,2482.7,3.61092]
[1730725629907,0.40312,2482.7,2482.6,0.4205]
[1730725630117,3.15238282,2482.8,2482.4,3.6447]
[1730725630414,0.40316,2482.5,2482.4,3.2078]
[1730725631020,4.43116,2482.5,2482.4,3.2078]
[1730725631205,5.30376,2482.5,2482.4,3.2078]
[1730725631509,5.30376,2482.5,2482.4,3.61097]
[1730725631811,42.07576,2482.5,2482.4,3.61097]
[1730725632109,46.10376,2482.5,2482.4,3.2078]
[1730725632507,46.10376,2482.5,2482.4,3.61097]
[1730725632812,46.10376,2482.5,2482.4,3.2078]
[1730725633110,46.10376,2482.5,2482.3,0.4318]
[1730725633111,0.40317,2482.4,2482.3,0.4318]
[1730725633302,0.40317,2482.4,2481.9,3.6302]
[1730725633303,0.40324,2482.0,2481.9,3.6302]
[1730725633504,3.55562282,2482.0,2481.9,3.6302]
[1730725633707,3.55562282,2482.0,2481.9,3.2078]
[1730725633904,10.38898282,2482.0,2481.7,0.4569]
[1730725634104,6.36018282,2482.0,2481.9,0.40325]
[1730725634314,6.36018282,2482.3,2481.7,4.67292]
[1730725634607,0.4505,2482.4,2482.3,0.40319]
[1730725634808,40.8,2482.5,2482.1,3.2078]
[1730725635014,40.8,2482.5,2482.4,0.40317]
[1730725635309,7.21382282,2482.7,2482.2,1.89701]
[1730725635310,4.00601282,2482.7,2482.2,1.89701]
[1730725635607,4.00601282,2482.7,2482.6,0.40314]
[1730725635608,0.4505,2482.7,2482.6,0.40314]
[1730725635811,0.4031,2482.9,2482.8,0.40311]
[1730725636112,0.40311,2482.8,2482.7,0.40311]
[1730725636410,0.4031,2482.9,2482.8,0.40311]
[1730725636606,0.40311,2482.8,2482.7,0.84951]
[1730725636808,0.40311,2482.8,2482.4,1.00794]
[1730725636809,0.40316,2482.5,2482.4,0.40316]
[1730725637007,0.40315,2482.6,2482.5,0.40315]
[1730725637716,0.40314,2482.7,2482.6,0.40314]
[1730725638117,4.028,2482.7,2482.3,1.00798]
[1730725638319,0.40315,2482.6,2482.5,0.40315]
[1730725638713,4.028,2482.6,2482.2,5.10482]
[1730725638917,47.16018282,2482.8,2482.5,0.40315]
[1730725639115,0.40314,2482.6,2482.5,0.40315]
[1730725639508,4.43114,2482.6,2482.5,0.40315]
[1730725640316,0.40316,2482.5,2482.4,0.40316]
[1730725641317,48.16798282,2482.8,2482.2,4.0968]
[1730725641318,47.16018282,2482.8,2482.2,4.0968]
[1730725641523,0.40314,2482.7,2482.6,0.40314]
[1730725641713,0.40314,2482.7,2482.2,5.10481]
[1730725641714,0.40315,2482.6,2482.5,0.40315]
[1730725643025,0.40317,2482.5,2482.4,0.40317]
[1730725643317,47.16018282,2482.8,2482.2,4.0968]
[1730725643521,0.40319,2482.3,2482.2,0.4426]
[1730725643822,6.36018282,2482.5,2481.7,0.4512]
[1730725644124,0.40324,2482.1,2482.0,0.40324]
[1730725644618,4.43204,2482.1,2482.0,0.40324]
[1730725645028,4.0288,2482.1,2481.7,0.4512]
[1730725645221,0.40325,2482.0,2481.9,0.40324]
[1730725645525,3.57498282,2482.2,2481.7,0.85447]
[1730725645526,0.40327,2481.8,2481.7,0.85447]
[1730725645731,0.40327,2481.9,2481.8,0.40325]
[1730725646422,0.40327,2481.8,2481.7,0.85447]
[1730725647327,41.20327,2481.9,2481.8,0.40327]
[1730725647515,0.40327,2481.8,2481.7,0.4512]
[1730725647716,40.8,2481.9,2481.6,3.2078]
[1730725647717,0.40329,2481.7,2481.6,3.2078]
[1730725648531,0.40329,2481.7,2481.6,3.6111]
[1730725649221,0.40329,2481.7,2481.6,3.2078]
[1730725649534,0.40328,2481.8,2481.7,0.40328]
[1730725649829,0.40329,2481.7,2481.6,3.2078]
[1730725650328,0.40329,2481.7,2481.6,3.6111]
[1730725650538,40.8,2481.9,2481.8,0.40327]
[1730725650730,3.15238282,2482.3,2481.6,8.24565]
[1730725650731,0.40324,2482.1,2481.6,4.21605]
[1730725651029,3.15238282,2482.3,2481.9,3.2078]
[1730725651327,41.20321,2482.2,2482.1,0.40321]
[1730725651624,40.8,2482.2,2482.1,0.40321]
[1730725651822,0.40318,2482.4,2482.3,0.40318]
[1730725652420,41.20317,2482.5,2482.4,0.40317]
[1730725652825,0.40319,2482.4,2482.3,0.40318]
[1730725655839,40.8,2482.5,2482.2,0.40318]
[1730725655840,0.4032,2482.3,2482.2,0.40318]
[1730725656533,0.4032,2482.3,2482.0,2.31399]
[1730725656534,0.40322,2482.2,2482.1,0.40321]
[1730725656728,3.55558282,2482.3,2482.2,0.40321]
[1730725658030,3.15238282,2482.3,2482.0,1.3059]
[1730725658335,0.40322,2482.2,2482.1,0.40321]
[1730725658528,0.84782,2482.2,2482.1,0.40321]
[1730725660331,0.4032,2482.3,2482.0,1.3059]
[1730725660523,0.4032,2482.3,2482.2,0.40318]
[1730725661329,0.40319,2482.4,2482.3,0.40317]
[1730725662835,40.8,2482.5,2482.1,1.00804]
[1730725663136,40.8,2482.5,2482.4,0.40317]
[1730725663632,41.20316,2482.5,2482.4,0.40317]
[1730725666532,40.8,2482.5,2482.4,0.40317]
[1730725666731,41.20316,2482.5,2482.4,0.40317]
[1730725667728,40.8,2482.5,2482.4,0.40317]
[1730725668131,40.8,2482.5,2482.4,4.43117]
[1730725668841,40.8,2482.5,2482.4,0.40317]
[1730725669444,40.8,2482.5,2482.4,5.21285718]
[1730725669934,40.8,2482.5,2482.4,1.18485718]
[1730725670137,40.8,2482.5,2482.4,0.99060634]
[1730725670341,40.8,2482.5,2482.4,1.18484646]
[1730725671437,40.8,2482.5,2482.4,1.18502174]
[1730725672344,40.8,2482.5,2482.4,2.13078138]
[1730725672641,40.8,2482.5,2482.4,5.33858138]
[1730725673050,40.8,2482.5,2482.4,5.34220951]
[1730725675340,40.8,2482.5,2482.4,9.37020951]
[1730725675545,0.19445289,2483.5,2483.3,0.40303]
[1730725675546,0.40302,2483.4,2483.3,0.40303]
[1730725675938,0.4183,2483.5,2483.1,1.2717]
[1730725676342,0.40303,2483.3,2483.2,0.40303]
[1730725677246,40.8,2483.4,2483.1,1.2717]
[1730725677447,40.8,2483.4,2483.2,0.40303]
[1730725677448,0.40303,2483.3,2483.2,0.40303]
[1730725678043,41.20302,2483.4,2483.3,0.40303]
[1730725678235,0.40303,2483.3,2483.2,0.40303]
[1730725678435,41.20302,2483.4,2483.3,0.40303]
[1730725678843,41.20302,2483.4,2483.2,0.40303]
[1730725678844,0.40303,2483.3,2483.2,0.40303]
[1730725679044,0.40303,2483.3,2483.1,1.2717]
[1730725679045,41.20302,2483.4,2483.3,0.40303]
[1730725680148,40.8,2483.4,2483.3,0.40303]
[1730725680346,41.20301,2483.4,2483.3,0.40303]
[1730725681939,40.8,2483.4,2483.3,0.40303]
[1730725685653,0.40295,2483.8,2483.7,0.40295]
[1730725685953,0.83434,2483.9,2483.8,0.40295]
[1730725686254,0.83434,2483.9,2483.7,0.40295]
[1730725686255,0.40295,2483.8,2483.7,0.40295]
[1730725686441,41.2314,2483.9,2483.6,0.40297]
[1730725686442,0.40297,2483.7,2483.6,0.40297]
[1730725686647,0.40298,2483.6,2483.5,0.86239]
[1730725687048,0.403,2483.5,2483.4,0.403]
[1730725687856,1.45082,2483.7,2483.2,3.6672]
[1730725687857,0.40303,2483.4,2483.3,0.40302]
[1730725688057,3.15238282,2483.6,2483.2,3.2078]
[1730725688358,0.86553,2483.3,2483.2,0.40304]
[1730725689244,0.86554,2483.3,2483.2,0.40304]
[1730725689750,0.40304,2483.2,2483.1,1.25045]
[1730725689951,0.40304,2483.2,2483.1,0.82895]
[1730725690154,0.4625,2483.3,2482.9,0.418]
[1730725690354,0.4187,2483.2,2482.9,0.418]
[1730725691059,1.42632,2483.2,2482.7,0.9047]
[1730725691255,1.42632,2483.2,2482.6,3.6258]
[1730725691256,3.2078,2483.1,2482.6,3.6258]
[1730725691556,0.40312,2482.7,2482.6,0.418]
[1730725692252,41.20312,2482.7,2482.6,0.418]
[1730725692455,40.8,2482.7,2482.6,0.82114]
[1730725692759,41.20312,2482.7,2482.6,0.82114]
[1730725693165,40.8,2482.7,2482.6,0.82114]
[1730725693352,3.57108282,2483.2,2482.6,0.82114]
[1730725693353,3.2078,2483.4,2482.6,7.6538]
[1730725693556,0.8829,2483.6,2483.0,3.15238282]
[1730725693750,1.28588,2483.6,2483.5,0.40299]
[1730725693960,42.08588,2483.6,2483.5,0.40299]
[1730725694357,41.6829,2483.6,2483.3,0.4552]
[1730725694557,42.08589,2483.6,2483.3,0.4552]
[1730725694761,41.2627,2483.6,2483.5,0.40299]
[1730725695257,40.8,2483.6,2483.5,0.40299]
[1730725695454,40.8,2483.6,2483.5,4.42939]
[1730725695758,0.4455,2483.9,2483.8,0.40295]
[1730725695959,6.36018282,2484.3,2483.8,4.0264]
[1730725696150,0.40289,2484.2,2484.1,0.4029]
[1730725696463,0.40291,2484.1,2484.0,0.40291]
[1730725696761,40.8,2484.1,2484.0,0.40291]
[1730725698858,0.00524412,2484.4,2484.3,0.40287]
[1730725699260,40.80524412,2484.4,2484.3,0.40287]
[1730725702057,0.00524412,2484.4,2484.3,4.42767]
[1730725702363,0.00524412,2484.4,2484.3,4.88297]
[1730725703662,0.40277,2485.0,2484.5,1.00708]
[1730725703962,40.8,2485.0,2484.9,0.40277]
[1730725704361,40.8,2485.0,2484.9,4.42677]
[1730725704966,40.8,2485.0,2484.9,4.88597]
[1730725705569,40.8,2485.0,2484.9,0.86197]
[1730725705963,40.8,2485.0,2484.9,0.4592]
[1730725706163,40.8,2485.0,2484.8,3.2078]
[1730725706469,40.8,2485.0,2484.8,3.61057]
[1730725706859,40.8,2485.0,2484.7,0.4565]
[1730725707058,40.8,2485.0,2484.5,3.2078]
[1730725707059,1.00693,2484.9,2484.5,3.2078]
[1730725707263,0.40282,2484.6,2484.5,3.2078]
[1730725708568,0.40281,2484.7,2484.5,3.61062]
[1730725708761,0.40281,2484.7,2484.6,0.40282]
[1730725708966,4.1238,2484.9,2484.8,0.40278]
[1730725708967,0.4575,2484.9,2484.8,0.40278]
[1730725709264,0.4575,2484.9,2484.6,4.0248]
[1730725709265,0.40279,2484.8,2484.7,0.40279]
[1730725709466,0.86027,2484.9,2484.8,0.40278]
[1730725709970,0.86027,2484.9,2484.6,0.4497]
[1730725710265,0.40277,2484.9,2484.8,0.40278]
[1730725710470,40.8,2485.0,2484.6,0.4497]
[1730725710675,40.8,2485.0,2484.5,3.2078]
[1730725710676,45.01469,2485.0,2484.5,3.2078]
[1730725710881,0.40282,2484.6,2484.5,3.2078]
[1730725713273,0.449,2484.9,2484.5,3.61063]
[1730725713469,0.40282,2484.6,2484.5,3.61063]
[1730725713676,0.40279,2484.8,2484.7,0.40279]
[1730725713973,0.4028,2484.7,2484.6,0.4028]
[1730725715463,4.0907,2484.9,2484.3,4.1082]
[1730725715663,0.40285,2484.4,2484.3,4.51106]
[1730725715864,0.40285,2484.4,2484.3,4.51105]
[1730725716375,0.40285,2484.4,2484.3,4.1082]
[1730725716876,0.40285,2484.4,2484.3,3.2078]
[1730725717067,0.4029,2484.1,2484.0,0.4609]
[1730725717268,0.40295,2483.8,2483.7,3.61076]
[1730725717474,40.8,2483.8,2483.7,4.6624756]
[1730725717682,0.40294,2483.9,2483.8,0.40295]
[1730725718266,40.8,2483.9,2483.7,3.6687]
[1730725718467,0.40295,2483.8,2483.7,3.6687]
[1730725718871,0.40295,2483.8,2483.7,4.07166]
[1730725719274,0.40295,2483.8,2483.7,3.6687]
[1730725720075,0.40295,2483.8,2483.7,0.86386]
[1730725720875,0.40295,2483.8,2483.7,0.4609]
[1730725721480,0.40295,2483.8,2483.7,0.86385]
[1730725721777,41.20294,2483.9,2483.8,0.40295]
[1730725722376,0.40295,2483.8,2483.7,0.86385]
[1730725723079,41.20294,2483.9,2483.8,0.40295]
[1730725723271,0.40295,2483.8,2483.7,0.86386]
[1730725723671,40.8,2483.9,2483.7,0.4609]
[1730725723873,41.20294,2483.9,2483.8,0.40295]
[1730725724375,41.20294,2483.9,2483.7,0.4609]
[1730725724376,40.8,2483.9,2483.7,0.4609]
[1730725724578,41.20294,2483.9,2483.8,0.40295]
[1730725724874,0.40295,2483.8,2483.7,0.86385]
[1730725725069,0.40295,2483.8,2483.7,0.4609]
[1730725725374,0.40295,2483.8,2483.7,0.86386]
[1730725726474,40.8,2483.9,2483.7,0.86386]
[1730725726475,41.20294,2483.9,2483.8,0.40295]
[1730725726677,0.863,2484.3,2483.8,11.38182425]
[1730725726876,6.36018282,2484.8,2483.9,1.59959463]
[1730725726877,3.2078,2484.4,2483.9,1.59959463]
[1730725727173,0.40287,2484.3,2484.2,0.40287]
[1730725727783,0.40288,2484.2,2484.1,0.40289]
[1730725727973,44.0078,2484.4,2483.8,6.36018282]
[1730725728286,0.40288,2484.2,2484.1,0.40289]
[1730725729281,0.40288,2484.2,2483.9,1.00733]
[1730725729282,0.40292,2484.0,2483.9,0.40292]
[1730725729487,0.40291,2484.1,2484.0,0.40291]
[1730725731069,0.40291,2484.1,2483.7,1.46831]
[1730725731070,0.40292,2484.0,2483.9,0.40292]
[1730725731473,0.4029,2484.1,2484.0,0.4029]
[1730725732288,0.40289,2484.2,2484.1,0.4029]
[1730725732784,0.40291,2484.1,2484.0,0.40291]
[1730725734271,0.4233,2484.3,2484.1,0.40289]
[1730725734272,0.40288,2484.2,2484.1,0.40289]
[1730725734684,0.4029,2484.1,2484.0,0.4029]
[1730725735083,0.40289,2484.2,2484.1,0.40289]
[1730725736385,44.0078,2484.4,2483.8,7.36755282]
[1730725736682,44.0078,2484.4,2484.2,0.40287]
[1730725736683,0.40287,2484.3,2484.2,0.40287]
[1730725738484,0.40287,2484.3,2484.0,0.4497]
[1730725738485,0.4029,2484.1,2484.0,0.8526]
[1730725738688,4.21493,2484.4,2484.1,0.4029]
[1730725738689,0.82609,2484.2,2484.1,0.4029]
[1730725739175,0.4232,2484.2,2484.0,0.4497]
[1730725739381,0.4029,2484.1,2484.0,0.85261]
[1730725739686,0.4029,2484.1,2484.0,1.44678662]
[1730725740088,4.21493,2484.4,2484.0,1.04387662]
[1730725740281,0.4029,2484.1,2484.0,0.85261]
[1730725740481,0.4029,2484.1,2484.0,1.64161365]
[1730725741187,0.4029,2484.1,2484.0,0.59427299]
[1730725741383,0.40288,2484.3,2484.2,0.40288]
[1730725742183,0.40288,2484.3,2484.2,0.59425804]
[1730725742689,0.40288,2484.2,2484.1,0.40288]
[1730725742880,0.40288,2484.2,2484.1,1.19188049]
[1730725743079,3.631,2484.4,2484.1,0.78900049]
[1730725743380,4.03386,2484.4,2484.3,0.40287]
[1730725744684,3.631,2484.4,2484.3,0.40287]
[1730725744987,0.40284,2484.5,2484.4,0.40285]
[1730725745189,0.40281,2484.7,2484.6,0.4028]
[1730725745489,0.40268,2485.5,2485.4,0.40268]
[1730725745885,3.2078,2485.6,2485.1,0.4225]
[1730725746082,0.40268,2485.5,2485.4,0.40268]
[1730725746289,3.2078,2485.6,2485.1,0.4225]
[1730725746491,3.2078,2485.6,2485.2,0.78782341]
[1730725746782,3.61046,2485.6,2485.5,0.40267]
[1730725747088,3.61046,2485.6,2485.4,0.40267]
[1730725747089,3.61047,2485.6,2485.4,0.40267]
[1730725747292,3.2078,2485.6,2485.1,0.82523]
[1730725747590,0.40272,2485.2,2485.1,0.4225]
[1730725747789,0.40271,2485.3,2485.1,0.4225]
[1730725747990,7.36684282,2485.6,2484.9,3.2078]
[1730725748181,0.40274,2485.1,2485.0,0.59311074]
[1730725748386,6.36018282,2485.2,2484.4,3.73751367]
[1730725748588,0.8602,2485.1,2484.5,1.73669878]
[1730725748787,0.8602,2485.1,2484.6,1.19036361]
[1730725748788,0.40273,2484.9,2484.6,1.19036361]
[1730725748985,0.40274,2484.8,2484.7,0.59321625]
[1730725749186,0.8602,2485.1,2484.7,0.59321625]
[1730725749380,0.8602,2485.1,2484.6,3.2078]
[1730725749685,0.8602,2485.1,2484.8,0.40273]
[1730725749686,0.83991,2485.1,2484.8,0.40273]
[1730725749885,0.83991,2485.1,2484.9,0.4489]
[1730725750088,0.40271,2485.0,2484.9,0.4489]
[1730725750478,0.40275,2484.8,2484.6,0.40277]
[1730725750693,0.40274,2484.8,2484.7,0.59329613]
[1730725750884,0.4372,2485.1,2484.5,0.4386]
[1730725751088,0.40276,2484.7,2484.6,0.59329687]
[1730725751388,0.40278,2484.6,2484.5,0.4386]
[1730725751688,0.40278,2484.6,2484.5,1.03211467]
[1730725751879,40.8,2484.6,2484.4,3.2078]
[1730725752085,40.8,2484.6,2483.9,1.04499367]
[1730725752086,1.007,2484.5,2483.9,1.04499367]
[1730725752394,1.007,2484.5,2484.0,0.59394702]
[1730725752395,0.40286,2484.1,2484.0,0.59394702]
[1730725752583,1.00707,2484.3,2483.8,4.4718]
[1730725752788,0.40287,2484.0,2483.9,0.78868254]
[1730725753493,0.40287,2484.0,2483.9,0.78870812]
[1730725753992,0.40286,2484.1,2483.9,1.19158812]
[1730725754187,0.40286,2484.1,2483.9,0.40288]
[1730725754588,0.40288,2484.0,2483.8,4.8747]
[1730725754786,0.40284,2484.2,2484.0,0.40286]
[1730725755192,1.00702,2484.5,2483.9,0.40289]
[1730725755193,0.40287,2484.1,2483.9,0.40289]
[1730725755383,0.40287,2484.1,2484.0,0.78867712]
[1730725755990,0.40285,2484.2,2484.0,1.19154712]
[1730725756191,0.40285,2484.2,2484.0,0.40287]
[1730725756391,0.40285,2484.2,2484.1,0.59400731]
[1730725756694,0.40289,2484.0,2483.8,3.6107]
[1730725756891,0.40289,2484.0,2483.9,0.78888616]
[1730725757983,1.00708,2484.3,2483.8,3.2078]
[1730725758182,0.40289,2483.9,2483.8,3.2078]
[1730725758387,0.40289,2483.9,2483.8,3.80204466]
[1730725758591,0.40289,2483.9,2483.8,3.99683056]
[1730725759084,0.40289,2483.9,2483.8,3.2078]
[1730725759488,4.15941282,2484.4,2483.8,4.39970252]
[1730725759801,4.15941282,2484.4,2483.8,3.61069]
[1730725759802,0.40289,2483.9,2483.8,3.61069]
[1730725759985,0.40288,2484.0,2483.8,4.39964834]
[1730725760294,0.40288,2484.0,2483.9,0.59424346]
[1730725760598,0.40288,2484.0,2483.9,0.40289]
[1730725760801,0.40289,2484.0,2483.9,0.59423835]
[1730725761299,0.40289,2484.0,2483.9,0.99712835]
[1730725761594,0.40289,2484.0,2483.9,0.59423636]
[1730725761801,0.40289,2484.0,2483.8,3.6107]
[1730725761802,1.00707,2484.3,2483.8,3.2078]
[1730725762098,0.40289,2484.0,2483.9,0.40289]
[1730725762299,0.40289,2483.9,2483.8,3.2078]
[1730725762496,0.40289,2483.9,2483.8,3.80210222]
[1730725762697,0.40289,2483.9,2483.8,4.22430222]
[1730725762903,0.40289,2483.9,2483.8,4.03291]
[1730725763297,0.40289,2483.9,2483.8,3.63]
[1730725765304,0.40289,2483.9,2483.8,4.03291]
[1730725765609,0.40289,2483.9,2483.8,3.63]
[1730725765999,0.40289,2483.9,2483.8,0.4222]
[1730725767912,0.40289,2483.9,2483.8,0.82511]
[1730725768203,0.40289,2483.9,2483.8,1.41950336]
[1730725768997,0.40289,2483.9,2483.8,1.61430417]
[1730725769600,0.40289,2483.9,2483.8,1.21139417]
[1730725769807,0.40289,2483.9,2483.8,1.41950336]
[1730725770105,0.40289,2484.0,2483.9,0.40289]
[1730725770411,0.40289,2484.0,2483.9,0.99728121]
[1730725771904,0.40289,2484.0,2483.9,0.40289]
[1730725772209,0.40289,2484.0,2483.9,0.99730916]
[1730725772407,0.40287,2484.1,2484.0,0.40286]
[1730725772810,0.40287,2484.1,2484.0,3.61066]
[1730725773207,0.40287,2484.1,2484.0,4.20504331]
[1730725773405,0.40287,2484.1,2484.0,0.40286]
[1730725773607,0.40287,2484.1,2484.0,0.99723892]
[1730725773912,1.44517,2484.3,2483.8,0.4222]
[1730725773913,0.40289,2483.9,2483.8,0.8251]
[1730725774107,0.40289,2483.9,2483.8,1.61430735]
[1730725774413,0.40289,2483.9,2483.8,1.4195256]
[1730725774708,0.40289,2483.9,2483.8,1.61435399]
[1730725775312,0.40289,2483.9,2483.8,4.22773839]
[1730725775500,0.40289,2483.9,2483.8,4.03291]
[1730725775813,1.44518,2484.3,2483.8,4.41925007]
[1730725776113,0.40288,2484.0,2483.9,0.59442979]
[1730725776308,0.40288,2484.0,2483.9,0.78922449]
[1730725779501,0.40288,2484.0,2483.9,1.19211449]
[1730725779711,0.40288,2484.0,2483.9,0.78922449]
[1730725780713,0.40287,2484.1,2484.0,0.40287]
[1730725781617,1.45197,2484.3,2483.8,3.63]
[1730725781818,0.40287,2484.1,2484.0,0.40285]
[1730725782119,0.40285,2484.2,2484.1,0.40284]
[1730725783416,0.4449,2484.3,2484.0,0.4602]
[1730725783616,0.40286,2484.1,2484.0,0.86306]
[1730725785226,0.40286,2484.1,2483.9,3.2078]
[1730725785520,0.40289,2484.0,2483.9,3.61068]
[1730725785724,0.40289,2484.0,2483.9,4.205217]
[1730725785917,0.40289,2484.0,2483.9,3.802337]
[1730725786110,0.40289,2484.0,2483.9,3.2078]
[1730725789021,0.40286,2484.1,2483.8,0.82509]
[1730725789022,0.40289,2483.9,2483.8,0.82509]
[1730725789219,0.40289,2483.9,2483.8,1.61466426]
[1730725790424,1.45199,2484.3,2483.8,1.21177426]
[1730725790622,0.40287,2484.0,2483.9,0.99754453]
[1730725790818,1.45199,2484.3,2483.9,0.59467453]
[1730725791019,0.40287,2484.1,2484.0,0.40287]
[1730725791219,0.40286,2484.1,2483.8,1.42947]
[1730725791420,0.84773,2484.3,2484.2,0.40284]
[1730725791619,40.8,2484.6,2484.2,0.78930714]
[1730725791821,0.40281,2484.4,2484.3,5.25391568]
[1730725792422,0.40281,2484.4,2484.3,4.85135692]
[1730725793418,0.40281,2484.4,2484.3,4.0619]
[1730725793624,0.40281,2484.4,2484.3,5.80399478]
[1730725793819,40.8,2484.6,2484.3,6.20682513]
[1730725794025,40.8,2484.6,2484.4,0.79002995]
[1730725794333,40.8,2484.6,2484.5,1.65661995]
[1730725795129,40.8,2484.6,2484.5,2.60885059]
[1730725795327,40.8,2484.6,2484.5,6.63365059]
[1730725795732,40.8,2484.6,2484.5,2.60885059]
[1730725795936,40.8,2484.6,2484.5,7.82385064]
[1730725797234,40.8,2484.6,2484.5,7.82445226]
[1730725798135,40.8,2484.6,2484.5,3.79965226]
[1730725799724,40.8,2484.6,2484.5,4.84464593]
[1730725799924,40.8,2484.6,2484.5,3.79965226]
[1730725800121,40.8,2484.6,2484.5,4.84464593]
[1730725801436,40.8,2484.6,2484.5,8.86944593]
[1730725801742,0.83732,2485.0,2484.9,0.40273]
[1730725801932,0.4346,2485.0,2484.9,1.19284355]
[1730725802134,3.2078,2485.2,2485.1,0.4027]
[1730725802135,40.8,2485.2,2485.1,0.4027]
[1730725802329,40.8,2485.2,2485.1,5.3504021]
[1730725802545,40.8,2485.2,2485.1,5.35037674]
[1730725802740,0.4546,2485.8,2485.6,0.40261]
[1730725802945,0.4026,2485.7,2485.6,0.40261]
[1730725803138,0.40261,2485.6,2485.5,3.2078]
[1730725803337,40.8,2485.8,2485.7,0.4026]
[1730725803537,40.8,2485.8,2485.7,0.99585886]
[1730725804140,40.8,2485.8,2485.7,0.4026]
[1730725805253,0.40261,2485.6,2485.5,3.2078]
[1730725805744,4.42581,2485.6,2485.5,3.2078]
[1730725806132,0.40261,2485.6,2485.5,3.2078]
[1730725806534,44.95885282,2485.8,2485.2,3.6653]
[1730725806735,0.40266,2485.3,2484.8,3.61053]
[1730725806951,0.40273,2484.9,2484.8,3.2078]
[1730725807435,0.40272,2485.0,2484.8,3.61053]
[1730725807642,0.4322,2485.1,2484.8,3.2078]
[1730725807946,0.4322,2485.1,2484.9,0.40273]
[1730725807947,40.8,2485.0,2484.9,0.40273]
[1730725808339,40.8,2485.0,2484.9,4.42673]
[1730725808541,0.40264,2485.5,2484.9,7.17638282]
[1730725808745,0.436,2485.7,2485.3,3.15238282]
[1730725808948,0.4507,2486.1,2485.4,0.8413]
[1730725809142,0.4507,2486.1,2485.1,4.4058]
[1730725809143,1.00657,2485.6,2485.1,4.4058]
[1730725809350,0.436,2485.5,2485.1,4.4058]
[1730725809745,0.40266,2485.4,2485.1,4.4058]
[1730725809943,0.436,2485.5,2485.1,4.4058]
[1730725810248,0.436,2485.5,2485.3,0.40266]
[1730725810249,0.83864,2485.5,2485.3,0.40266]
[1730725810440,0.40265,2485.4,2485.2,0.4462]
[1730725810646,0.40265,2485.4,2485.2,0.84887]
[1730725810852,0.40265,2485.4,2485.3,0.40266]
[1730725811053,0.436,2485.5,2485.2,0.4462]
[1730725811249,0.436,2485.5,2485.3,0.40266]
[1730725811456,0.436,2485.5,2485.4,0.40265]
[1730725811749,0.83863,2485.5,2485.4,0.40265]
[1730725812244,0.83864,2485.5,2485.3,0.82266]
[1730725812450,0.83864,2485.5,2485.4,0.40265]
[1730725812657,0.40265,2485.4,2485.3,0.82266]
[1730725812842,0.40265,2485.4,2485.3,0.42]
[1730725813044,0.40267,2485.3,2485.1,3.61048]
[1730725813449,0.4293,2485.4,2484.8,3.2078]
[1730725813746,0.40273,2484.9,2484.8,3.61054]
[1730725813946,1.00667,2485.3,2484.8,3.2078]
[1730725814249,0.40272,2485.0,2484.8,3.2078]
[1730725814455,40.8,2484.9,2484.8,3.61054]
[1730725814754,40.8,2484.9,2484.8,6.76292282]
[1730725815057,0.40262,2485.6,2485.4,0.40264]
[1730725815254,1.90173,2485.9,2485.2,1.3134]